fUSD/lending_fUSD_20250507
["ID","MTS","AMOUNT","RATE_DAILY","PERIOD"]
[360195597,1746614942925,-540.25,0.00019588,2]
[360195598,1746614942955,-862.74,0.00019588,2]
[360195599,1746614942985,-500.29,0.00019588,2]
[360195600,1746614943015,-587.19,0.00019588,2]
[360195601,1746614943045,-586.43,0.00019588,2]
[360195602,1746614943076,-503.33,0.00019588,2]
[360195603,1746614943265,-1826.21,0.00019588,2]
[360195604,1746614943298,-450.0,0.00019588,2]
[360195605,1746614943332,-450.0,0.00019588,2]
[360195606,1746614943365,-544.16,0.00019588,2]
[360195607,1746614943397,-1391.75,0.00019588,2]
[360195608,1746614943429,-708.97,0.00019588,2]
[360195609,1746614943460,-450.0,0.00019588,2]
[360195610,1746614943494,-2862.7,0.00019588,2]
[360195611,1746614943526,-2745.63,0.00019588,2]
[360195612,1746614943558,-769.2,0.00019588,2]
[360195613,1746614943590,-718.28,0.00019588,2]
[360195614,1746614943620,-880.0,0.00019588,2]
[360195615,1746614943652,-589.24,0.00019588,2]
[360195616,1746614943682,-475.88,0.00019589,2]
[360195617,1746614943714,-450.0,0.00019589,2]
[360195618,1746614943746,-1152.2,0.00019589,2]
[360195619,1746614943781,-422.27013284,0.00019589,2]
[360195620,1746614943815,-559.23,0.00019589,2]
[360195621,1746614943851,-560.84,0.00019589,2]
[360195622,1746614943884,-454.51,0.00019589,2]
[360195623,1746614943916,-717.55,0.00019589,2]
[360195624,1746614943949,-302.64133573,0.00019589,2]
[360195625,1746614943980,-1019.86,0.00019589,2]
[360195626,1746614944011,-450.0,0.00019589,2]
[360195627,1746614944041,-450.0,0.00019589,2]
[360195628,1746614944071,-450.0,0.00019589,2]
[360195629,1746614944101,-683.57,0.00019589,2]
[360195630,1746614944131,-450.0,0.00019589,2]
[360195631,1746614944163,-450.0,0.00019589,2]
[360195632,1746614944194,-575.04,0.00019589,2]
[360195633,1746614944228,-804.49,0.00019589,2]
[360195634,1746614944261,-825.77,0.00019589,2]
[360195635,1746614944293,-1093.57,0.00019589,2]
[360195636,1746614944326,-814.49,0.00019589,2]
[360195637,1746614944359,-653.21,0.00019589,2]
[360195638,1746614944390,-450.0,0.00019589,2]
[360195639,1746614944421,-1214.17,0.00019589,2]
[360195640,1746614944451,-1264.98,0.00019589,2]
[360195641,1746614944481,-450.0,0.00019589,2]
[360195642,1746614944512,-706.13,0.00019589,2]
[360195643,1746614944544,-552.32,0.00019589,2]
[360195644,1746614944575,-769.64,0.00019589,2]
[360195645,1746614944605,-1374.23,0.00019589,2]
[360195646,1746614944634,-500.0,0.0001959,2]
[360195647,1746614944665,-318.81715013,0.0001959,2]
[360195648,1746614944695,-500.0,0.0001959,2]
[360195649,1746614944724,-4017.0,0.00019591,2]
[360195650,1746614944753,-234.949,0.00019591,2]
[360195651,1746614944784,-276.937,0.00019591,2]
[360195652,1746614944813,-6767.0,0.00019591,2]
[360195653,1746614944843,-927.0,0.00019591,2]
[360195654,1746614944875,-879.0,0.00019591,2]
[360195655,1746614944906,-1302.0,0.00019591,2]
[360195656,1746614944938,-880.0,0.00019591,2]
[360195657,1746614944970,-813.963,0.00019591,2]
[360195658,1746614945000,-626.0,0.00019591,2]
[360195659,1746614945029,-5934.0,0.00019591,2]
[360195660,1746614945058,-1142.0,0.00019591,2]
[360195661,1746614945090,-500.0,0.00019591,2]
[360195662,1746614945119,-500.0,0.00019591,2]
[360195663,1746614945151,-450.0,0.00019592,2]
[360195664,1746614945182,-450.0,0.00019592,2]
[360195665,1746614945214,-590.12,0.00019592,2]
[360195666,1746614945246,-545.29,0.00019592,2]
[360195667,1746614945279,-520.25,0.00019592,2]
[360195668,1746614945310,-995.8,0.00019592,2]
[360195669,1746614945341,-450.0,0.00019592,2]
[360195670,1746614945371,-522.38,0.00019592,2]
[360195671,1746614945403,-540.25,0.00019592,2]
[360195672,1746614945434,-500.29,0.00019592,2]
[360195673,1746614945467,-890.92,0.00019592,2]
[360195674,1746614945500,-890.92,0.00019592,2]
[360195675,1746614945532,-890.92,0.00019592,2]
[360195676,1746614945565,-890.92,0.00019592,2]
[360195677,1746614945598,-890.92446278,0.00019592,2]
[360195678,1746614945631,-586.43,0.00019592,2]
[360195679,1746614945663,-503.33,0.00019592,2]
[360195680,1746614945696,-1826.21,0.00019592,2]
[360195681,1746614945727,-1695.43,0.00019592,2]
[360195682,1746614945758,-1695.43,0.00019592,2]
[360195683,1746614945790,-1695.43,0.00019592,2]
[360195684,1746614945821,-1695.43,0.00019592,2]
[360195685,1746614945853,-1695.531111,0.00019592,2]
[360195686,1746614945884,-518.51,0.00019592,2]
[360195687,1746614945916,-518.51,0.00019592,2]
[360195688,1746614945948,-518.51,0.00019592,2]
[360195689,1746614945978,-518.51,0.00019592,2]
[360195690,1746614946008,-518.58060399,0.00019592,2]
[360195691,1746614946039,-544.16,0.00019592,2]
[360195692,1746614946070,-1391.75,0.00019592,2]
[360195693,1746614946099,-526.61,0.00019592,2]
[360195694,1746614946128,-526.61,0.00019592,2]
[360195695,1746614946158,-526.61,0.00019592,2]
[360195696,1746614946188,-526.61,0.00019592,2]
[360195697,1746614946218,-526.66967196,0.00019592,2]
[360195698,1746614946250,-450.0,0.00019592,2]
[360195699,1746614946280,-301.04067756,0.00019592,2]
[360195700,1746614946309,-880.0,0.00019592,2]
[360195701,1746614946340,-592.2,0.00019592,2]
[360195702,1746614946370,-592.2,0.00019592,2]
[360195703,1746614946401,-592.2,0.00019592,2]
[360195704,1746614946433,-592.2,0.00019592,2]
[360195705,1746614946466,-592.26890107,0.00019592,2]
[360195706,1746614946497,-589.24,0.00019592,2]
[360195707,1746614946526,-475.88,0.00019593,2]
[360195708,1746614946555,-450.0,0.00019593,2]
[360195709,1746614946584,-1152.2,0.00019593,2]
[360195710,1746614946614,-559.23,0.00019593,2]
[360195711,1746614946645,-560.84,0.00019593,2]
[360195712,1746614946676,-454.51,0.00019593,2]
[360195713,1746614946706,-507.91,0.00019593,2]
[360195714,1746614946737,-717.55,0.00019593,2]
[360195715,1746614946771,-1019.86,0.00019593,2]
[360195716,1746614946801,-450.0,0.00019593,2]
[360195717,1746614946831,-450.0,0.00019593,2]
[360195718,1746614946862,-450.0,0.00019593,2]
[360195719,1746614946894,-683.57,0.00019593,2]
[360195720,1746614946925,-450.0,0.00019593,2]
[360195721,1746614946960,-174.78267964,0.00019593,2]
[360195722,1746614946990,-575.04,0.00019593,2]
[360195723,1746614947025,-804.49,0.00019593,2]
[360195724,1746614947054,-825.77,0.00019593,2]
[360195725,1746614947085,-616.27,0.00019593,2]
[360195726,1746614947114,-1093.57,0.00019593,2]
[360195727,1746614947146,-814.49,0.00019593,2]
[360195728,1746614947178,-706.91,0.00019593,2]
[360195729,1746614947208,-653.21,0.00019593,2]
[360195730,1746614947240,-308.17564237,0.00019593,2]
[360195731,1746614947272,-1214.17,0.00019593,2]
[360195732,1746614947303,-862.74,0.00019593,2]
[360195733,1746614947333,-1264.98,0.00019593,2]
[360195734,1746614947365,-404.39583285,0.00019593,2]
[360195735,1746614947397,-706.13,0.00019593,2]
[360195736,1746614947427,-552.32,0.00019593,2]
[360195737,1746614947460,-769.64,0.00019593,2]
[360195738,1746614947492,-1374.23,0.00019593,2]
[360195739,1746614947523,-708.97,0.00019593,2]
[360195740,1746614947555,-450.0,0.00019594,2]
[360195741,1746614947585,-2795.86,0.00019594,2]
[360195742,1746614947616,-587.19,0.00019594,2]
[360195743,1746614947647,-450.0,0.00019594,2]
[360195744,1746614947678,-450.0,0.00019594,2]
[360195745,1746614947709,-450.0,0.00019594,2]
[360195746,1746614947740,-2862.7,0.00019594,2]
[360195747,1746614947771,-2745.63,0.00019594,2]
[360195748,1746614947803,-769.2,0.00019594,2]
[360195749,1746614947835,-718.28,0.00019594,2]
[360195750,1746614947867,-586.43,0.00019595,2]
[360195751,1746614948050,-544.16,0.00019595,2]
[360195752,1746614948081,-475.88,0.00019596,2]
[360195753,1746614948110,-450.0,0.00019596,2]
[360195754,1746614948139,-1152.2,0.00019596,2]
[360195755,1746614948169,-559.23,0.00019596,2]
[360195756,1746614948200,-560.84,0.00019596,2]
[360195757,1746614948231,-454.51,0.00019596,2]
[360195758,1746614948263,-717.55,0.00019596,2]
[360195759,1746614948294,-1019.86,0.00019596,2]
[360195760,1746614948327,-450.0,0.00019596,2]
[360195761,1746614948359,-450.0,0.00019596,2]
[360195762,1746614948390,-450.0,0.00019596,2]
[360195763,1746614948420,-683.57,0.00019596,2]
[360195764,1746614948451,-450.0,0.00019596,2]
[360195765,1746614948483,-575.04,0.00019596,2]
[360195766,1746614948514,-804.49,0.00019596,2]
[360195767,1746614948545,-825.77,0.00019596,2]
[360195768,1746614948577,-1093.57,0.00019596,2]
[360195769,1746614948607,-814.49,0.00019596,2]
[360195770,1746614948640,-653.21,0.00019596,2]
[360195771,1746614948672,-1214.17,0.00019596,2]
[360195772,1746614948706,-1264.98,0.00019596,2]
[360195773,1746614948739,-706.13,0.00019596,2]
[360195774,1746614948771,-552.32,0.00019596,2]
[360195775,1746614948805,-769.64,0.00019596,2]
[360195776,1746614948835,-1374.23,0.00019596,2]
[360195777,1746614948870,-507.91,0.00019597,2]
[360195778,1746614948900,-507.91,0.00019597,2]
[360195779,1746614948933,-507.91,0.00019597,2]
[360195780,1746614948965,-507.91,0.00019597,2]
[360195781,1746614948996,-508.09046393,0.00019597,2]
[360195782,1746614949029,-616.27,0.00019597,2]
[360195783,1746614949059,-616.27,0.00019597,2]
[360195784,1746614949089,-616.27,0.00019597,2]
[360195785,1746614949119,-616.27,0.00019597,2]
[360195786,1746614949149,-616.48599438,0.00019597,2]
[360195787,1746614949178,-706.91,0.00019597,2]
[360195788,1746614949208,-706.91,0.00019597,2]
[360195789,1746614949240,-706.91,0.00019597,2]
[360195790,1746614949271,-706.91,0.00019597,2]
[360195791,1746614949301,-706.97,0.00019597,2]
[360195792,1746614949329,-862.74,0.00019597,2]
[360195793,1746614949358,-862.74,0.00019597,2]
[360195794,1746614949388,-862.74,0.00019597,2]
[360195795,1746614949418,-862.74,0.00019597,2]
[360195796,1746614949447,-862.95900472,0.00019597,2]
[360195797,1746614949477,-708.97,0.00019597,2]
[360195798,1746614949507,-708.97,0.00019597,2]
[360195799,1746614949536,-708.97,0.00019597,2]
[360195800,1746614949566,-708.97,0.00019597,2]
[360195801,1746614949595,-709.09685742,0.00019597,2]
[360195802,1746614949625,-193.76958713,0.00019597,2]
[360195803,1746614949655,-500.0,0.00019597,2]
[360195804,1746614949686,-350.6971927,0.00019598,2]
[360195805,1746614949717,-450.0,0.00019598,2]
[360195806,1746614949748,-590.12,0.00019598,2]
[360195807,1746614949780,-545.29,0.00019598,2]
[360195808,1746614949812,-520.25,0.00019598,2]
[360195809,1746614949844,-995.8,0.00019598,2]
[360195810,1746614949882,-450.0,0.00019598,2]
[360195811,1746614949916,-450.0,0.00019598,2]
[360195812,1746614949948,-2795.86,0.00019598,2]
[360195813,1746614949980,-522.38,0.00019598,2]
[360195814,1746614950011,-540.25,0.00019598,2]
[360195815,1746614950043,-500.29,0.00019598,2]
[360195816,1746614950074,-587.19,0.00019598,2]
[360195817,1746614950107,-586.43,0.00019598,2]
[360195818,1746614950139,-503.33,0.00019598,2]
[360195819,1746614950172,-1826.21,0.00019598,2]
[360195820,1746614950207,-450.0,0.00019598,2]
[360195821,1746614950239,-450.0,0.00019598,2]
[360195822,1746614950271,-544.16,0.00019598,2]
[360195823,1746614950305,-1391.75,0.00019598,2]
[360195824,1746614950337,-450.0,0.00019598,2]
[360195825,1746614950369,-2862.7,0.00019598,2]
[360195826,1746614950401,-2745.63,0.00019598,2]
[360195827,1746614950432,-769.2,0.00019598,2]
[360195828,1746614950463,-718.28,0.00019598,2]
[360195829,1746614950497,-880.0,0.00019598,2]
[360195830,1746614950531,-589.24,0.00019598,2]
[360195831,1746614950564,-475.88,0.00019599,2]
[360195832,1746614950597,-450.0,0.00019599,2]
[360195833,1746614950629,-1152.2,0.00019599,2]
[360195834,1746614950663,-559.23,0.00019599,2]
[360195835,1746614950694,-560.84,0.00019599,2]
[360195836,1746614950727,-454.51,0.00019599,2]
[360195837,1746614950759,-717.55,0.00019599,2]
[360195838,1746614950791,-275.32279476,0.00019599,2]
[360195839,1746614950822,-1019.86,0.00019599,2]
[360195840,1746614950856,-450.0,0.00019599,2]
[360195841,1746614950886,-450.0,0.00019599,2]
[360195842,1746614950919,-450.0,0.00019599,2]
[360195843,1746614950951,-683.57,0.00019599,2]
[360195844,1746614950982,-450.0,0.00019599,2]
[360195845,1746614951013,-575.04,0.00019599,2]
[360195846,1746614951043,-804.49,0.00019599,2]
[360195847,1746614951073,-825.77,0.00019599,2]
[360195848,1746614951104,-590.12,0.00019599,2]
[360195849,1746614951134,-590.12,0.00019599,2]
[360195850,1746614951165,-545.29,0.00019599,2]
[360195851,1746614951196,-545.29,0.00019599,2]
[360195852,1746614951227,-1093.57,0.00019599,2]
[360195853,1746614951258,-520.25,0.00019599,2]
[360195854,1746614951289,-520.25,0.00019599,2]
[360195855,1746614951319,-995.8,0.00019599,2]
[360195856,1746614951349,-814.49,0.00019599,2]
[360195857,1746614951380,-995.8,0.00019599,2]
[360195858,1746614951410,-450.0,0.00019599,2]
[360195859,1746614951440,-483.77151196,0.00019599,2]
[360195860,1746614951470,-653.21,0.00019599,2]
[360195861,1746614951500,-2795.86,0.00019599,2]
[360195862,1746614951529,-522.38,0.00019599,2]
[360195863,1746614951559,-522.38,0.00019599,2]
[360195864,1746614951589,-540.25,0.00019599,2]
[360195865,1746614951618,-540.25,0.00019599,2]
[360195866,1746614951647,-1214.17,0.00019599,2]
[360195867,1746614951676,-500.29,0.00019599,2]
[360195868,1746614951706,-500.29,0.00019599,2]
[360195869,1746614951737,-587.19,0.00019599,2]
[360195870,1746614951766,-1264.98,0.00019599,2]
[360195871,1746614951796,-586.43,0.00019599,2]
[360195872,1746614951825,-586.43,0.00019599,2]
[360195873,1746614951856,-586.43,0.00019599,2]
[360195874,1746614951887,-586.43,0.00019599,2]
[360195875,1746614951918,-503.33,0.00019599,2]
[360195876,1746614951950,-503.33,0.00019599,2]
[360195877,1746614951981,-586.46,0.00019599,2]
[360195878,1746614952010,-1826.21,0.00019599,2]
[360195879,1746614952041,-1826.21,0.00019599,2]
[360195880,1746614952071,-450.0,0.00019599,2]
[360195881,1746614952102,-706.13,0.00019599,2]
[360195882,1746614952132,-450.0,0.00019599,2]
[360195883,1746614952163,-552.32,0.00019599,2]
[360195884,1746614952193,-769.64,0.00019599,2]
[360195885,1746614952224,-544.16,0.00019599,2]
[360195886,1746614952255,-544.16,0.00019599,2]
[360195887,1746614952284,-544.16,0.00019599,2]
[360195888,1746614952313,-1391.75,0.00019599,2]
[360195889,1746614952343,-544.16,0.00019599,2]
[360195890,1746614952373,-1391.75,0.00019599,2]
[360195891,1746614952405,-544.21560768,0.00019599,2]
[360195892,1746614952438,-1374.23,0.00019599,2]
[360195893,1746614952468,-450.0,0.00019599,2]
[360195894,1746614952502,-2862.7,0.00019599,2]
[360195895,1746614952543,-2745.63,0.00019599,2]
[360195896,1746614952588,-769.2,0.00019599,2]
[360195897,1746614952630,-718.28,0.00019599,2]
[360195898,1746614952671,-880.0,0.00019599,2]
[360195899,1746614952712,-880.0,0.00019599,2]
[360195900,1746614952934,-589.24,0.00019599,2]
[360195901,1746614952973,-589.24,0.00019599,2]
[360195902,1746614953010,-1374.0,0.000196,2]
[360195903,1746614953047,-475.88,0.000196,2]
[360195904,1746614953083,-475.88,0.000196,2]
[360195905,1746614953118,-475.88,0.000196,2]
[360195906,1746614953152,-475.88,0.000196,2]
[360195907,1746614953185,-476.04920056,0.000196,2]
[360195908,1746614953218,-450.0,0.000196,2]
[360195909,1746614953252,-367.1951406,0.000196,2]
[360195910,1746614953291,-1152.2,0.000196,2]
[360195911,1746614953326,-1152.2,0.000196,2]
[360195912,1746614953361,-1152.2,0.000196,2]
[360195913,1746614953395,-1152.2,0.000196,2]
[360195914,1746614953428,-1152.3278184,0.000196,2]
[360195915,1746614953463,-559.23,0.000196,2]
[360195916,1746614953498,-559.23,0.000196,2]
[360195917,1746614953530,-559.23,0.000196,2]
[360195918,1746614953566,-559.23,0.000196,2]
[360195919,1746614953598,-559.3028578,0.000196,2]
[360195920,1746614953630,-560.84,0.000196,2]
[360195921,1746614953660,-560.84,0.000196,2]
[360195922,1746614953689,-560.84,0.000196,2]
[360195923,1746614953719,-560.84,0.000196,2]
[360195924,1746614953748,-560.90320601,0.000196,2]
[360195925,1746614953779,-454.51,0.000196,2]
[360195926,1746614953814,-454.51,0.000196,2]
[360195927,1746614953846,-454.51,0.000196,2]
[360195928,1746614953882,-454.51,0.000196,2]
[360195929,1746614953913,-454.5948946,0.000196,2]
[360195930,1746614953944,-717.55,0.000196,2]
[360195931,1746614953977,-717.55,0.000196,2]
[360195932,1746614954009,-717.55,0.000196,2]
[360195933,1746614954043,-717.55,0.000196,2]
[360195934,1746614954073,-717.58335639,0.000196,2]
[360195935,1746614954105,-1019.86,0.000196,2]
[360195936,1746614954136,-1019.86,0.000196,2]
[360195937,1746614954168,-1019.86,0.000196,2]
[360195938,1746614954200,-1019.86,0.000196,2]
[360195939,1746614954231,-1020.07271514,0.000196,2]
[360195940,1746614954267,-450.0,0.000196,2]
[360195941,1746614954299,-450.0,0.000196,2]
[360195942,1746614954329,-435.29561072,0.000196,2]
[360195943,1746614954360,-450.0,0.000196,2]
[360195944,1746614954391,-450.0,0.000196,2]
[360195945,1746614954421,-595.09578368,0.000196,2]
[360195946,1746614954450,-450.0,0.000196,2]
[360195947,1746614954480,-450.0,0.000196,2]
[360195948,1746614954509,-450.0,0.000196,2]
[360195949,1746614954540,-244.26757998,0.000196,2]
[360195950,1746614954570,-683.57,0.000196,2]
[360195951,1746614954600,-683.57,0.000196,2]
[360195952,1746614954631,-683.57,0.000196,2]
[360195953,1746614954662,-683.57,0.000196,2]
[360195954,1746614954695,-683.62230905,0.000196,2]
[360195955,1746614954727,-450.0,0.000196,2]
[360195956,1746614954759,-450.0,0.000196,2]
[360195957,1746614954795,-167.25789722,0.000196,2]
[360195958,1746614954828,-575.04,0.000196,2]
[360195959,1746614954862,-575.04,0.000196,2]
[360195960,1746614954893,-575.04,0.000196,2]
[360195961,1746614954924,-575.04,0.000196,2]
[360195962,1746614954955,-575.18911019,0.000196,2]
[360195963,1746614954986,-804.49,0.000196,2]
[360195964,1746614955019,-804.49,0.000196,2]
[360195965,1746614955054,-804.49,0.000196,2]
[360195966,1746614955085,-804.49,0.000196,2]
[360195967,1746614955116,-804.51920561,0.000196,2]
[360195968,1746614955147,-825.77,0.000196,2]
[360195969,1746614955178,-825.77,0.000196,2]
[360195970,1746614955210,-825.77,0.000196,2]
[360195971,1746614955241,-825.77,0.000196,2]
[360195972,1746614955274,-825.94368359,0.000196,2]
[360195973,1746614955307,-590.12,0.000196,2]
[360195974,1746614955339,-590.12,0.000196,2]
[360195975,1746614955371,-590.12,0.000196,2]
[360195976,1746614955401,-590.12,0.000196,2]
[360195977,1746614955432,-590.28043215,0.000196,2]
[360195978,1746614955462,-545.29,0.000196,2]
[360195979,1746614955494,-545.29,0.000196,2]
[360195980,1746614955524,-545.29,0.000196,2]
[360195981,1746614955555,-545.29,0.000196,2]
[360195982,1746614955586,-545.52428459,0.000196,2]
[360195983,1746614955616,-1093.57,0.000196,2]
[360195984,1746614955648,-1093.57,0.000196,2]
[360195985,1746614955678,-1093.57,0.000196,2]
[360195986,1746614955708,-1093.57,0.000196,2]
[360195987,1746614955741,-520.25,0.000196,2]
[360195988,1746614955772,-1093.5846404,0.000196,2]
[360195989,1746614955807,-520.25,0.000196,2]
[360195990,1746614955838,-520.25,0.000196,2]
[360195991,1746614955872,-520.25,0.000196,2]
[360195992,1746614955904,-520.2607038,0.000196,2]
[360195993,1746614955937,-814.49,0.000196,2]
[360195994,1746614955966,-814.49,0.000196,2]
[360195995,1746614955995,-995.8,0.000196,2]
[360195996,1746614956037,-814.49,0.000196,2]
[360195997,1746614956069,-995.8,0.000196,2]
[360195998,1746614956099,-814.49,0.000196,2]
[360195999,1746614956129,-995.8,0.000196,2]
[360196000,1746614956160,-814.59987307,0.000196,2]
[360196001,1746614956192,-995.8,0.000196,2]
[360196002,1746614956225,-995.97772466,0.000196,2]
[360196003,1746614956259,-385.68053467,0.000196,2]
[360196004,1746614956846,8328.7795,0.00019414,2]
[360196005,1746614957600,8900.4755,0.00019415,2]
[360196006,1746614979524,4065.69395297,0.000195,2]
[360196008,1746614984902,409.41,0.00018592,2]
[360196009,1746614985331,409.41,0.00018597,2]
[360196010,1746614985420,409.41,0.00018602,2]
[360196011,1746614985609,409.41,0.00018607,2]
[360196012,1746614985810,409.41,0.00018612,2]
[360196013,1746614986046,408.60403125,0.00018617,2]
[360196014,1746614986072,0.80596875,0.00018617,2]
[360196015,1746614986233,409.41,0.00018621,2]
[360196016,1746614986631,409.41,0.00018626,2]
[360196017,1746614987045,409.41,0.00018631,2]
[360196018,1746614987301,409.41,0.00018636,2]
[360196019,1746614987686,409.41,0.00018641,2]
[360196020,1746614987903,409.41,0.00018646,2]
[360196021,1746614988186,409.41,0.00018651,2]
[360196022,1746614988551,409.41,0.00018656,2]
[360196023,1746614988643,409.41,0.00018661,2]
[360196024,1746614988823,409.41,0.00018666,2]
[360196025,1746614989043,409.41,0.00018671,2]
[360196026,1746614989243,409.41,0.00018675,2]
[360196027,1746614989473,409.41,0.0001868,2]
[360196028,1746614989671,409.41,0.00018685,2]
[360196030,1746615011371,183075.29156302,0.000193,2]
[360196031,1746615013095,183075.29156302,0.00019292,2]
[360196035,1746615032109,-720.04,0.00019513,2]
[360196037,1746615032120,-479.96,0.00019513,2]
[360196038,1746615032130,-300.0,0.00019513,2]
[360196040,1746615032141,-450.0,0.00019514,2]
[360196042,1746615032151,-450.0,0.00019514,2]
[360196043,1746615032160,-252.46,0.00019514,2]
[360196044,1746615032170,-394.01831506,0.00019514,2]
[360196045,1746615032267,-55.98168494,0.00019514,2]
[360196046,1746615032276,-1231.27,0.00019514,2]
[360196047,1746615032285,-450.0,0.00019514,2]
[360196048,1746615032295,-473.5748037,0.00019514,2]
[360196049,1746615032304,-450.0,0.00019514,2]
[360196050,1746615032313,-450.0,0.00019514,2]
[360196051,1746615032322,-154.60300818,0.00019514,2]
[360196052,1746615032331,-450.0,0.00019514,2]
[360196053,1746615032340,-450.0,0.00019514,2]
[360196054,1746615032350,-450.0,0.00019514,2]
[360196055,1746615032359,-450.0,0.00019514,2]
[360196056,1746615032369,-450.0,0.00019514,2]
[360196057,1746615032378,-450.0,0.00019514,2]
[360196058,1746615032387,-450.0,0.00019514,2]
[360196059,1746615032397,-450.0,0.00019514,2]
[360196060,1746615032406,-450.0,0.00019514,2]
[360196061,1746615032416,-480.95,0.00019514,2]
[360196062,1746615032425,-450.0,0.00019514,2]
[360196063,1746615032434,-531.9868525,0.00019514,2]
[360196064,1746615032443,-450.0,0.00019514,2]
[360196065,1746615032453,-314.75896964,0.00019514,2]
[360196066,1746615032462,-450.0,0.00019514,2]
[360196067,1746615032472,-489.8775683,0.00019514,2]
[360196068,1746615032481,-450.0,0.00019514,2]
[360196069,1746615032491,-450.0,0.00019514,2]
[360196070,1746615032501,-511.4071811,0.00019514,2]
[360196071,1746615032510,-450.0,0.00019514,2]
[360196072,1746615032519,-450.0,0.00019514,2]
[360196073,1746615032529,-450.0,0.00019514,2]
[360196074,1746615032539,-450.0,0.00019514,2]
[360196075,1746615032548,-450.0,0.00019514,2]
[360196076,1746615032558,-535.42,0.00019514,2]
[360196078,1746615032567,-450.0,0.00019514,2]
[360196080,1746615032577,-450.0,0.00019514,2]
[360196082,1746615032586,-450.0,0.00019514,2]
[360196084,1746615032596,-450.0,0.00019514,2]
[360196086,1746615032605,-450.0,0.00019514,2]
[360196088,1746615032614,-662.51,0.00019514,2]
[360196090,1746615032624,-450.0,0.00019514,2]
[360196092,1746615032633,-490.48,0.00019514,2]
[360196094,1746615032643,-421.50056753,0.00019514,2]
[360196096,1746615032652,-661.97,0.00019514,2]
[360196098,1746615032662,-450.0,0.00019514,2]
[360196101,1746615032672,-450.0,0.00019514,2]
[360196103,1746615032682,-478.54074024,0.00019514,2]
[360196105,1746615032691,-475.50283804,0.00019514,2]
[360196107,1746615032701,-495.56041663,0.00019514,2]
[360196109,1746615032710,-450.0,0.00019514,2]
[360196111,1746615032719,-450.0,0.00019514,2]
[360196112,1746615032729,-1026.2,0.00019514,2]
[360196114,1746615032738,-572.18845893,0.00019514,2]
[360196116,1746615032747,-450.0,0.00019514,2]
[360196119,1746615032757,-450.0,0.00019514,2]
[360196120,1746615032766,-886.82,0.00019514,2]
[360196122,1746615032775,-450.0,0.00019514,2]
[360196124,1746615032785,-470.0,0.00019514,2]
[360196126,1746615032795,-450.0,0.00019514,2]
[360196128,1746615032805,-450.0,0.00019514,2]
[360196130,1746615032814,-450.0,0.00019514,2]
[360196132,1746615032825,-450.0,0.00019514,2]